bitfinex-derivatives/quotes_ETHF0:USTF0_20250404
["timestamp","ask_amount","ask_price","bid_price","bid_amount"]
[1743738059469,1.402,1790.0,1789.9,5.69216]
[1743738059673,2.51974,1790.0,1789.8,2.65091]
[1743738059969,1.402,1790.0,1789.9,1.1178]
[1743738060174,1.402,1790.0,1789.9,2.5424]
[1743738060976,0.00838504,1790.1,1790.0,1.11774]
[1743738061176,0.00838504,1790.1,1790.0,3.29734]
[1743738061376,1.12606504,1790.1,1790.0,3.29734]
[1743738061578,1.48938504,1790.1,1790.0,3.29734]
[1743738063175,0.00838504,1790.1,1790.0,3.29734]
[1743738063381,0.00838504,1790.1,1790.0,10.34714]
[1743738064376,1.11732,1790.7,1790.6,1.11736]
[1743738064577,2.55522,1790.7,1790.6,1.11736]
[1743738064778,4.325,1790.9,1790.8,1.11724]
[1743738064979,2.5551,1790.9,1790.8,1.11724]
[1743738065180,1.4379,1790.9,1790.8,1.11724]
[1743738065377,2.55508,1790.9,1790.8,1.11724]
[1743738065583,2.55508,1790.9,1790.7,3.34893504]
[1743738065876,1.4379,1790.8,1790.7,3.34893504]
[1743738066780,1.44468504,1791.0,1790.9,1.11718]
[1743738066983,4.09239504,1791.0,1790.9,1.11718]
[1743738067280,1.1172,1790.9,1790.7,1.87504504]
[1743738067484,2.6478,1790.9,1790.7,1.87504504]
[1743738067677,2.6478,1790.9,1790.8,1.11724]
[1743738068082,1.5306,1790.9,1790.8,1.11724]
[1743738069083,2.64778,1790.9,1790.8,1.11724]
[1743738070380,1.5306,1790.9,1790.8,1.11724]
[1743738070581,2.64778,1790.9,1790.8,1.11724]
[1743738070978,1.5306,1790.9,1790.7,0.75778504]
[1743738071173,2.58304,1790.8,1790.7,1.87507504]
[1743738071379,1.4658,1790.8,1790.7,1.87507504]
[1743738071580,2.58304,1790.8,1790.7,1.87507504]
[1743738072085,1.4658,1790.8,1790.7,1.87507504]
[1743738073485,2.58304,1790.8,1790.7,0.75778504]
[1743738073787,1.4658,1790.8,1790.7,1.87508504]
[1743738075385,2.56184504,1791.0,1790.9,1.11718]
[1743738075685,4.04444504,1791.0,1790.9,1.11718]
[1743738075878,1.11718,1790.9,1790.8,2.55149]
[1743738076084,2.59978,1790.9,1790.8,1.4343]
[1743738076285,2.59978,1790.9,1790.8,1.11724]
[1743738076987,1.4826,1790.9,1790.8,1.11724]
[1743738077180,2.59978,1790.9,1790.8,1.11724]
[1743738077780,1.11724,1790.8,1790.7,2.19208504]
[1743738078089,2.59984,1790.8,1790.7,0.00838504]
[1743738078792,1.4826,1790.8,1790.7,1.12568504]
[1743738078984,2.59984,1790.8,1790.7,1.12568504]
[1743738081289,0.9826,1790.8,1790.7,1.12568504]
[1743738081886,2.09984,1790.8,1790.7,1.12568504]
[1743738083485,0.9826,1790.8,1790.7,1.12568504]
[1743738083690,2.09984,1790.8,1790.7,1.12568504]
[1743738085591,2.09984,1790.8,1790.7,0.00838504]
[1743738086391,2.09984,1790.8,1790.7,1.12568504]
[1743738087091,2.09984,1790.8,1790.7,0.00838504]
[1743738087495,2.09984,1790.8,1790.7,1.12568504]
[1743738089190,2.09984,1790.8,1790.7,1.86998504]
[1743738092194,1.44468504,1791.0,1790.9,1.11718]
[1743738092396,1.11718,1790.9,1790.8,2.1959]
[1743738092597,1.11718,1790.9,1790.8,3.31314]
[1743738092800,2.65468,1790.9,1790.8,3.31314]
[1743738097900,1.11724,1790.8,1790.7,0.00838504]
[1743738098202,1.11741,1790.6,1790.5,1.11737]
[1743738098903,3.23283,1790.7,1790.6,1.11736]
[1743738099106,2.53723,1790.7,1790.6,1.11736]
[1743738099400,2.53723,1790.7,1790.6,3.34386]
[1743738099795,2.53723,1790.7,1790.6,2.2265]
[1743738101896,1.11736,1790.6,1790.5,0.6977]
[1743738102401,6.00083,1790.9,1790.6,1.11736]
[1743738102704,1.11729,1790.8,1790.7,1.4551]
[1743738103799,2.62159,1790.8,1790.7,1.4551]
[1743738104302,1.11736,1790.6,1790.5,5.02293]
[1743738104597,1.11736,1790.6,1790.5,2.1528]
[1743738104803,2.62165,1790.7,1790.5,2.1528]
[1743738105000,3.37795,1790.7,1790.5,2.1528]
[1743738105200,1.5043,1790.6,1790.5,2.1528]
[1743738105500,1.5043,1790.6,1790.5,3.27023]
[1743738106904,1.11728,1790.8,1790.5,2.1528]
[1743738107207,1.11728,1790.8,1790.6,1.3968]
[1743738107397,2.51788,1790.8,1790.6,2.51412]
[1743738107597,2.51788,1790.8,1790.6,2.51411]
[1743738107801,2.51788,1790.8,1790.7,1.1173]
[1743738111299,2.51784,1790.8,1790.7,1.1173]
[1743738111600,2.51784,1790.8,1790.7,2.5534]
[1743738114708,0.00838504,1791.0,1790.9,1.11718]
[1743738115001,0.00838504,1791.0,1790.9,2.61978]
[1743738121205,3.2078,1791.4,1791.3,1.11693]
[1743738121405,2.2112,1791.4,1791.3,1.11693]
[1743738122212,3.32806,1791.4,1791.3,1.11693]
[1743738122800,1.11696,1791.3,1791.0,6.62778]
[1743738122999,4.24994,1791.3,1791.0,7.86367]
[1743738123201,1.11713,1791.0,1790.9,1.11715]
[1743738123407,4.6654,1791.2,1791.0,1.11711]
[1743738123599,1.4576,1791.1,1791.0,1.11711]
[1743738123797,2.9419,1791.1,1791.0,1.11711]
[1743738124209,2.9419,1791.1,1791.0,1.81361]
[1743738125103,4.05899,1791.1,1790.9,1.11713]
[1743738125305,1.4756,1791.0,1790.9,1.11713]
[1743738125910,1.4756,1791.0,1790.9,2.59063]
[1743738126210,4.32483,1791.2,1791.0,1.11708]
[1743738126507,1.4756,1791.1,1791.0,1.11708]
[1743738128304,2.59265,1791.1,1791.0,1.11708]
[1743738128499,1.4756,1791.1,1791.0,1.11708]
[1743738129499,1.4634,1791.3,1791.2,1.11699]
[1743738129813,1.5152,1791.3,1791.2,1.11699]
[1743738130204,2.63213,1791.3,1791.2,1.11699]
[1743738131307,1.5152,1791.3,1791.2,1.11699]
[1743738131913,2.63213,1791.3,1791.2,1.11699]
[1743738132206,1.5152,1791.3,1791.2,1.11699]
[1743738132411,2.63213,1791.3,1791.2,1.11699]
[1743738132609,1.11699,1791.2,1791.1,1.117]
[1743738132807,1.4828,1791.2,1791.0,6.0246]
[1743738133015,1.86451,1791.1,1791.0,1.11711]
[1743738134017,2.2759,1791.1,1791.0,1.11711]
[1743738135217,3.39295,1791.1,1791.0,1.11711]
[1743738135517,2.2759,1791.1,1791.0,1.11711]
[1743738135816,3.39295,1791.1,1791.0,1.11711]
[1743738136211,1.5285,1791.1,1791.0,1.11711]
[1743738136512,2.54608,1791.3,1791.2,1.11699]
[1743738137514,1.4291,1791.3,1791.2,1.11699]
[1743738137817,2.54603,1791.3,1791.2,1.11699]
[1743738138516,0.00838504,1791.5,1791.2,4.95513]
[1743738138710,2.17668504,1791.5,1791.4,1.11686]
[1743738139109,2.17668504,1791.5,1791.3,2.53139]
[1743738139314,1.434,1791.4,1791.2,1.86518]
[1743738139510,1.11699,1791.2,1791.1,1.11703]
[1743738139718,1.11705,1791.1,1791.0,0.7615]
[1743738139913,1.11711,1791.0,1790.9,1.87934]
[1743738140209,5.66996,1791.1,1790.7,1.87875]
[1743738140415,2.55122,1790.9,1790.7,1.87875]
[1743738140616,1.434,1790.8,1790.7,1.87875]
[1743738140814,1.434,1790.8,1790.7,3.31915]
[1743738141214,2.55124,1790.8,1790.7,3.31915]
[1743738141413,2.128,1790.8,1790.7,3.31915]
[1743738143015,3.24524,1790.8,1790.7,3.31915]
[1743738143215,2.128,1790.8,1790.7,3.31915]
[1743738143820,3.24524,1790.8,1790.7,3.31915]
[1743738144113,3.24524,1790.8,1790.6,1.11731]
[1743738144314,1.5283,1790.7,1790.6,1.11731]
[1743738144916,1.5283,1790.7,1790.6,2.59881]
[1743738146523,1.5283,1790.7,1790.6,6.43081]
[1743738147826,4.32496,1791.0,1790.6,5.3135]
[1743738148024,3.2078,1791.0,1790.9,1.11718]
[1743738148529,5.85366,1791.0,1790.8,2.9514]
[1743738148724,1.5287,1790.9,1790.8,4.06864]
[1743738149125,2.64588,1790.9,1790.8,4.06864]
[1743738149323,1.5287,1790.9,1790.8,4.06864]
[1743738152233,2.64588,1790.9,1790.8,4.06864]
[1743738152525,2.64588,1790.9,1790.8,2.9514]
[1743738152731,2.64588,1790.9,1790.8,4.06864]
[1743738153433,1.5287,1790.9,1790.8,4.06864]
[1743738154733,2.9576,1791.1,1791.0,1.11711]
[1743738155126,2.2083,1791.1,1791.0,1.11711]
[1743738155529,2.2083,1791.1,1791.0,2.58041]
[1743738155731,4.6856,1791.3,1791.2,1.11699]
[1743738156029,3.21618504,1791.5,1791.4,1.11686]
[1743738156229,5.82888504,1791.5,1791.4,1.11686]
[1743738156730,5.82888504,1791.5,1791.3,2.1808]
[1743738156925,4.33298504,1791.5,1791.4,1.11686]
[1743738157125,3.21618504,1791.5,1791.4,1.11686]
[1743738157521,4.33298504,1791.5,1791.4,1.11686]
[1743738157728,3.21618504,1791.5,1791.4,1.11686]
[1743738159629,3.21618504,1791.5,1791.4,3.31876]
[1743738159935,4.33298504,1791.5,1791.4,3.31876]
[1743738160231,3.21618504,1791.5,1791.4,3.31876]
[1743738161127,0.00838504,1791.5,1791.4,3.31876]
[1743738164235,1.12518504,1791.5,1791.4,3.31876]
[1743738164435,0.00838504,1791.5,1791.4,3.31876]
[1743738167532,1.12518504,1791.5,1791.4,3.31876]
[1743738167737,1.12518504,1791.5,1791.4,1.11686]
[1743738168438,0.00838504,1791.5,1791.4,1.11686]
[1743738168832,5.71618504,1791.5,1790.9,3.2078]
[1743738169136,1.11713,1791.0,1790.9,4.32494]
[1743738169329,1.11708,1791.1,1791.0,1.11709]
[1743738169533,2.59603,1791.2,1791.1,1.11705]
[1743738170438,1.11703,1791.2,1791.1,1.11705]
[1743738170638,2.53161,1791.4,1791.3,1.11693]
[1743738171626,1.11693,1791.3,1791.2,1.4556]
[1743738171832,1.11699,1791.2,1791.1,1.82451]
[1743738172635,1.11699,1791.2,1791.1,0.7075]
[1743738172835,1.11705,1791.1,1791.0,7.13067]
[1743738173637,1.11704,1791.2,1791.0,7.13067]
[1743738173839,1.11704,1791.2,1791.1,1.11705]
[1743738174139,1.11705,1791.1,1791.0,7.13069]
[1743738174341,1.11704,1791.2,1791.0,7.13069]
[1743738174637,1.11704,1791.2,1791.1,1.11705]
[1743738174839,1.11699,1791.2,1791.1,1.11705]
[1743738175139,1.11699,1791.2,1791.1,2.62905]
[1743738175339,1.11699,1791.2,1791.1,1.512]
[1743738176130,1.533,1791.3,1791.1,1.512]
[1743738176437,2.64996,1791.3,1791.1,2.62903]
[1743738176837,1.533,1791.2,1791.1,2.62903]
[1743738177340,2.64999,1791.2,1791.1,2.62903]
[1743738177641,2.64999,1791.2,1791.1,1.512]
[1743738178141,1.533,1791.2,1791.1,2.62905]
[1743738178337,2.64999,1791.2,1791.1,1.512]
[1743738178529,2.64999,1791.2,1791.1,2.62905]
[1743738178734,2.64999,1791.2,1791.1,1.512]
[1743738179541,2.64999,1791.2,1791.1,2.62905]
[1743738180942,1.533,1791.2,1791.1,2.62905]
[1743738181136,2.64999,1791.2,1791.1,2.62905]
[1743738181641,1.533,1791.2,1791.1,2.62905]
[1743738181841,2.64999,1791.2,1791.1,2.62905]
[1743738182040,3.21618504,1791.5,1791.2,2.79248]
[1743738182236,4.71278504,1791.5,1791.2,0.7151]
[1743738182548,1.11693,1791.3,1791.2,0.7151]
[1743738183043,2.61353,1791.3,1791.2,0.7151]
[1743738183250,1.11699,1791.2,1791.1,3.33551]
[1743738183436,1.11699,1791.2,1791.1,2.2185]
[1743738183437,2.61359,1791.2,1791.1,2.2185]
[1743738183649,2.61359,1791.2,1791.1,3.33555]
[1743738184438,1.4966,1791.2,1791.1,3.33555]
[1743738185538,1.11705,1791.1,1791.0,1.11709]
[1743738185842,2.60188,1791.1,1791.0,1.11709]
[1743738186033,1.4848,1791.1,1790.9,3.2078]
[1743738186232,1.4712,1791.0,1790.9,3.2078]
[1743738186432,1.4712,1791.0,1790.9,4.32493]
[1743738187233,1.4712,1791.0,1790.9,5.77103]
[1743738196144,2.58831,1791.0,1790.9,5.77103]
[1743738196340,2.58831,1791.0,1790.9,4.32498]
[1743738196848,2.58831,1791.0,1790.9,1.11718]
[1743738197037,1.4712,1791.0,1790.8,2.5885]
[1743738197238,1.4712,1791.0,1790.7,1.11729]
[1743738197239,1.11728,1790.8,1790.7,1.11729]
[1743738197649,2.56018,1790.8,1790.7,1.11729]
[1743738197849,1.4429,1790.8,1790.7,1.11729]
[1743738198045,2.56014,1790.8,1790.7,1.11729]
[1743738198240,3.95804,1790.8,1790.7,1.11729]
[1743738198452,2.8408,1790.8,1790.7,1.11729]
[1743738198656,3.95804,1790.8,1790.7,1.11729]
[1743738198948,2.8408,1790.8,1790.7,1.11729]
[1743738199551,0.6952,1790.9,1790.8,1.11724]
[1743738199750,1.3979,1791.0,1790.9,1.11718]
[1743738199947,3.2078,1791.1,1791.0,1.11711]
[1743738200146,4.7341,1791.1,1791.0,1.11711]
[1743738200450,3.2078,1791.1,1791.0,1.11711]
[1743738200847,1.11705,1791.1,1790.9,1.5315]
[1743738201045,1.11711,1791.0,1790.9,2.64865]
[1743738201249,2.6434,1791.1,1790.9,2.64865]
[1743738201450,0.7623,1791.0,1790.9,2.64865]
[1743738201652,2.2886,1791.0,1790.9,2.64865]
[1743738202052,3.40571,1791.0,1790.9,2.64865]
[1743738202752,2.2886,1791.0,1790.9,2.64865]
[1743738203351,3.54004,1791.3,1791.0,1.11708]
[1743738203656,1.11706,1791.1,1791.0,2.52718]
[1743738204152,1.82012,1791.2,1791.1,1.11705]
[1743738204453,1.82012,1791.2,1791.1,1.86285]
[1743738204952,1.11705,1791.1,1791.0,2.52715]
[1743738205255,1.11705,1791.1,1791.0,3.27295]
[1743738205956,1.11705,1791.1,1791.0,1.11705]
[1743738207652,1.82013,1791.2,1791.1,1.11705]
[1743738207856,0.7031,1791.2,1791.1,1.11705]
[1743738208058,1.86468,1791.3,1791.2,1.11699]
[1743738208358,1.11698,1791.3,1791.2,1.11699]
[1743738209060,1.11699,1791.2,1791.1,3.2578]
[1743738209550,9.55451,1791.4,1791.1,3.2578]
[1743738209551,1.11697,1791.3,1791.2,1.11693]
[1743738209951,1.11697,1791.3,1791.2,2.61133]
[1743738212663,5.08682,1791.4,1791.3,1.11693]
[1743738212961,0.00838504,1791.5,1791.4,1.11686]
[1743738213257,1.12518504,1791.5,1791.4,1.11686]
[1743738213456,0.00838504,1791.5,1791.4,3.35736]
[1743738213966,1.12518504,1791.5,1791.4,3.35736]
[1743738214258,0.00838504,1791.5,1791.4,3.35736]
[1743738215262,1.12518504,1791.5,1791.4,3.35736]
[1743738215758,2.62588504,1791.5,1791.4,2.2405]
[1743738216162,2.62588504,1791.5,1791.4,3.35736]
[1743738216759,2.62588504,1791.5,1791.4,2.2405]
[1743738217862,2.62588504,1791.5,1791.4,3.35736]
[1743738218362,2.62588504,1791.5,1791.4,2.2405]
[1743738218563,1.50908504,1791.5,1791.4,3.35736]
[1743738219455,2.62588504,1791.5,1791.4,3.35736]
[1743738219656,1.50908504,1791.5,1791.4,3.35736]
[1743738219859,2.62588504,1791.5,1791.4,3.35736]
[1743738220462,4.30110504,1791.5,1791.3,1.11692]
[1743738220661,2.909,1791.4,1791.3,1.11692]
[1743738220962,6.1168,1791.4,1791.1,2.9905]
[1743738221167,1.11699,1791.2,1791.1,4.10751]
[1743738221859,1.11699,1791.2,1791.1,1.5021]
[1743738222357,2.54019,1791.2,1791.1,1.5021]
[1743738223065,2.54019,1791.2,1791.1,0.7461]
[1743738223359,2.54019,1791.2,1791.1,1.11705]
[1743738223660,1.4232,1791.2,1791.1,1.11705]
[1743738223859,2.54019,1791.2,1791.1,2.54515]
[1743738224062,1.4232,1791.2,1791.1,2.54515]
[1743738224457,2.51992,1791.4,1791.3,1.11693]
[1743738224660,2.877,1791.4,1791.2,3.26144]
[1743738224860,3.99391,1791.4,1791.3,1.11693]
[1743738225057,2.51991,1791.4,1791.3,1.11693]
[1743738226065,2.51991,1791.4,1791.3,3.28013]
[1743738227355,2.51991,1791.4,1791.2,0.7019]
[1743738227553,1.11693,1791.3,1791.2,1.81884]
[1743738227762,1.11693,1791.3,1791.2,3.28624]
[1743738228466,2.51993,1791.4,1791.3,1.11693]
[1743738229064,2.79232,1791.3,1790.8,1.11719]
[1743738229260,1.1173,1790.7,1790.6,4.32512]
[1743738229466,1.1173,1790.7,1790.6,3.2078]
[1743738229670,2.79302,1790.9,1790.5,7.8722]
[1743738229671,1.11736,1790.6,1790.5,7.8722]
[1743738229960,1.11736,1790.6,1790.5,4.0502]
[1743738230865,1.11736,1790.6,1790.5,1.1174]
[1743738231570,1.11736,1790.6,1790.4,2.54542504]
[1743738232070,1.11736,1790.6,1790.5,1.11743]
[1743738232269,1.11736,1790.6,1790.5,2.53703]
[1743738232668,1.11736,1790.6,1790.5,1.4196]
[1743738232870,1.11735,1790.7,1790.5,1.4196]
[1743738233071,1.1173,1790.7,1790.5,1.4196]
[1743738233271,4.32509,1790.8,1790.5,2.53701]
[1743738233474,1.1173,1790.7,1790.6,0.7027]
[1743738233666,1.1173,1790.7,1790.6,2.2389]
[1743738235277,1.1173,1790.7,1790.6,0.7027]
[1743738235573,1.11743,1790.5,1790.4,1.54458504]
[1743738235774,2.52141,1790.6,1790.4,2.30758504]
[1743738236371,2.52141,1790.6,1790.4,3.42506504]
[1743738236572,2.52141,1790.6,1790.4,2.30758504]
[1743738236876,2.52141,1790.6,1790.4,3.42504504]
[1743738237071,2.52141,1790.6,1790.5,1.4824]
[1743738237474,2.52141,1790.6,1790.5,2.59983]
[1743738237475,1.404,1790.6,1790.5,2.59983]
[1743738238368,2.52136,1790.6,1790.5,2.59983]
[1743738238569,2.52136,1790.6,1790.5,1.4824]
[1743738239675,2.52136,1790.6,1790.5,2.59983]
[1743738239873,2.52136,1790.6,1790.5,1.4824]
[1743738240075,1.404,1790.6,1790.4,1.88881504]
[1743738240268,1.3917,1790.5,1790.4,3.33871504]
[1743738241367,6.00096,1790.8,1790.4,3.33871504]
[1743738241368,1.11734,1790.7,1790.6,1.11735]
[1743738241676,2.50904,1790.7,1790.6,1.11735]
[1743738242976,1.11736,1790.6,1790.5,2.56727]
[1743738243178,2.50904,1790.7,1790.6,1.11736]
[1743738243480,1.5106,1790.9,1790.5,1.4499]
[1743738243684,1.4343,1791.0,1790.8,1.11719]
[1743738243874,2.55141,1791.0,1790.9,0.7249]
[1743738244370,5.75921,1791.0,1790.9,0.7249]
[1743738244570,1.1173,1790.7,1790.6,5.65051]
[1743738244882,1.1173,1790.7,1790.6,3.822]
[1743738245081,1.11743,1790.5,1790.4,1.83704504]
[1743738246482,2.59423,1790.5,1790.4,1.83704504]
[1743738248582,1.4768,1790.5,1790.4,1.83704504]
[1743738248779,1.4768,1790.5,1790.4,3.29714504]
[1743738248977,1.11733,1790.7,1790.6,1.11735]
[1743738249186,1.11736,1790.6,1790.5,2.5775]
[1743738249380,1.11736,1790.6,1790.5,1.4601]
[1743738250083,1.11743,1790.5,1790.4,0.71958504]
[1743738250280,2.53603,1790.5,1790.4,0.71958504]
[1743738250883,2.53603,1790.5,1790.4,0.00838504]
[1743738254195,1.11761,1790.2,1790.1,0.7301]
[1743738254395,3.2078,1790.2,1789.9,2.57177]
[1743738254602,1.11774,1790.0,1789.9,1.11777]
[1743738254903,1.1178,1789.9,1789.8,6.39713]
[1743738255498,1.1178,1789.9,1789.8,5.2793]
[1743738255699,2.5538,1789.9,1789.8,5.2793]
[1743738255895,2.5538,1789.9,1789.8,1.4583]
[1743738256092,1.11786,1789.8,1789.7,0.77288504]
[1743738256402,1.11785,1789.9,1789.7,0.77288504]
[1743738256601,1.11785,1789.9,1789.8,1.11785]
[1743738256803,1.11786,1789.8,1789.7,1.89075504]
[1743738257101,1.11786,1789.8,1789.7,0.77288504]
[1743738257301,1.11786,1789.8,1789.7,1.89081504]
[1743738257605,1.11786,1789.8,1789.7,0.77288504]
[1743738257901,1.11786,1789.8,1789.7,1.89081504]
[1743738258304,3.21618504,1790.0,1789.7,1.89081504]
[1743738258606,1.11786,1789.8,1789.7,0.77288504]
[1743738259002,1.11786,1789.8,1789.7,1.89081504]
[1743738260205,1.11786,1789.8,1789.7,0.77288504]
[1743738260405,1.11786,1789.8,1789.7,1.89081504]
[1743738260904,1.11786,1789.8,1789.7,0.77288504]
[1743738261105,1.11786,1789.8,1789.7,1.89081504]
[1743738261406,1.11786,1789.8,1789.7,0.77288504]
[1743738261706,2.53152,1789.9,1789.7,1.89076504]
[1743738262092,2.53152,1789.9,1789.7,0.77288504]
[1743738262296,2.53152,1789.9,1789.7,1.89075504]
[1743738262704,2.53152,1789.9,1789.8,1.11786]
[1743738262905,2.53152,1789.9,1789.7,0.77288504]
[1743738263101,2.53152,1789.9,1789.8,1.11786]
[1743738264202,1.4137,1789.9,1789.8,1.11786]
[1743738264796,0.00838504,1790.0,1789.9,1.1178]
[1743738267911,0.00838504,1790.0,1789.9,1.8507]
[1743738274318,1.4879,1790.4,1790.3,1.11755]
[1743738274820,2.558,1790.6,1790.5,1.11743]
[1743738275020,2.9285,1790.6,1790.5,1.11743]
[1743738275317,4.04586,1790.6,1790.5,1.11743]
[1743738276417,2.9285,1790.6,1790.5,1.11743]
[1743738277115,2.9285,1790.6,1790.5,1.86683]
[1743738278519,1.4879,1790.6,1790.5,1.86683]
[1743738278724,1.4879,1790.6,1790.5,3.31213]
[1743738279619,0.00838504,1790.7,1790.6,1.11736]
[1743738280122,0.00838504,1790.7,1790.6,2.56776]
[1743738280323,1.40418504,1790.7,1790.6,2.56776]
[1743738280625,1.40418504,1790.7,1790.5,1.1174]
[1743738280918,2.52151504,1790.7,1790.4,9.49591]
[1743738281125,2.52151504,1790.7,1790.6,1.11736]
[1743738285327,1.40418504,1790.7,1790.6,1.11736]
[1743738285526,2.52148504,1790.7,1790.6,1.11736]
[1743738290126,1.40418504,1790.7,1790.6,1.11736]
[1743738290328,0.00838504,1790.7,1790.6,1.11736]
[1743738290630,0.00838504,1790.7,1790.6,2.54836]
[1743738291229,1.12568504,1790.7,1790.6,2.54836]
[1743738292329,0.00838504,1790.7,1790.6,2.54836]
[1743738293630,1.12568504,1790.7,1790.6,2.54836]
[1743738294024,0.00838504,1790.7,1790.6,2.54836]
[1743738300730,1.12568504,1790.7,1790.6,1.431]
[1743738301038,1.11753,1790.4,1790.1,6.00198]
[1743738301233,1.11761,1790.2,1790.1,0.7448]
[1743738301439,1.8274,1790.3,1790.1,1.86242]
[1743738301642,1.4901,1790.2,1790.1,1.86242]
[1743738302132,0.7215,1790.6,1790.1,0.7448]
[1743738302338,1.4901,1790.5,1790.4,1.11745]
[1743738303335,1.4901,1790.5,1790.4,2.64915]
[1743738303838,2.60753,1790.5,1790.4,2.64915]
[1743738304137,1.4901,1790.5,1790.4,2.64915]
[1743738305135,2.60753,1790.5,1790.4,2.64915]
[1743738305541,1.4901,1790.5,1790.4,2.64915]
[1743738306749,1.82721,1790.6,1790.5,1.11743]
[1743738307042,1.46068504,1790.7,1790.6,1.11736]
[1743738307244,0.00838504,1790.7,1790.6,2.55536]
[1743738307445,1.12568504,1790.7,1790.6,1.438]
[1743738307652,1.11749,1790.4,1790.3,6.37149]
[1743738307951,2.7936,1790.5,1790.2,7.7763]
[1743738308148,1.11755,1790.3,1790.2,3.9603]
[1743738308344,1.11755,1790.3,1790.2,5.07791]
[1743738308550,1.83885,1790.3,1790.2,5.07791]
[1743738308851,2.1736,1790.3,1790.2,5.07791]
[1743738309048,1.4523,1790.3,1790.2,5.07791]
[1743738309350,3.29107,1790.5,1790.4,1.11749]
[1743738310245,2.1736,1790.5,1790.4,1.11749]
[1743738310445,2.56973,1790.5,1790.4,1.83099]
[1743738311156,2.56973,1790.5,1790.4,0.7135]
[1743738311545,1.4523,1790.5,1790.4,1.83099]
[1743738312052,1.12570504,1790.7,1790.6,1.11736]
[1743738312254,3.26078504,1790.7,1790.6,1.11736]
[1743738312452,2.14348504,1790.7,1790.6,1.11736]
[1743738312652,1.44488504,1790.7,1790.6,2.65316]
[1743738312850,0.00838504,1790.7,1790.6,2.65316]
[1743738316048,2.61328504,1790.7,1790.6,2.65316]
[1743738316354,1.49598504,1790.7,1790.6,1.11736]
[1743738318154,3.2078,1791.1,1790.7,2.79311]
[1743738318356,1.4876,1791.1,1791.0,1.11711]
[1743738319060,27.16315997,1791.6,1791.4,1.11686]
[1743738319365,1.5021,1791.5,1791.4,1.11686]
[1743738319557,27.87125997,1791.6,1791.5,1.1168]
[1743738319747,27.16315997,1791.6,1791.5,1.1168]
[1743738319954,23.95535997,1791.6,1791.5,1.1168]
[1743738320450,23.95535997,1791.6,1791.5,3.2383]
[1743738322360,23.95535997,1791.6,1791.5,5.7383]
[1743738322658,0.00559004,1791.7,1791.6,1.11674]
[1743738322854,0.00559004,1791.7,1791.6,9.67714]
[1743738326059,0.00559004,1791.7,1791.6,4.7464]
[1743738326261,1.11675,1791.6,1791.4,6.44385]
[1743738326454,1.4227,1791.5,1791.4,6.44385]
[1743738326859,1.4227,1791.5,1791.4,5.327]
[1743738327159,1.4227,1791.5,1791.4,6.44386]
[1743738327956,1.4227,1791.5,1791.3,0.71698504]
[1743738328158,2.5395,1791.5,1791.4,3.812]
[1743738330058,1.11686,1791.4,1791.3,0.00838504]
[1743738330265,5.83416,1791.4,1791.3,0.00838504]
[1743738330456,8.33416,1791.4,1791.3,0.00838504]
[1743738330652,1.11718,1790.9,1790.8,1.4498]
[1743738330855,2.79279,1791.0,1790.5,5.3512]
[1743738331159,6.00109,1790.7,1790.1,3.9265]
[1743738331356,6.00137,1790.5,1790.1,5.64736]
[1743738331559,1.11761,1790.2,1790.1,3.811]
[1743738331759,1.11761,1790.2,1790.0,1.11769]
[1743738332063,1.4541,1790.1,1790.0,0.00838504]
[1743738332260,2.57178,1790.1,1790.0,0.00838504]
[1743738332566,5.77958,1790.1,1790.0,0.00838504]
[1743738333067,2.57178,1790.1,1790.0,0.00838504]
[1743738334359,1.4541,1790.1,1790.0,0.00838504]
[1743738334570,1.11764,1790.2,1790.0,0.00838504]
[1743738335066,1.11768,1790.1,1790.0,0.00838504]
[1743738336562,2.55398,1790.1,1790.0,0.00838504]
[1743738340264,1.4363,1790.1,1790.0,0.00838504]
[1743738340568,3.2078,1790.2,1790.0,1.12611504]
[1743738340766,3.2078,1790.2,1790.1,1.481]
[1743738340767,4.6555,1790.2,1790.1,1.481]
[1743738343077,5.77311,1790.2,1790.1,1.481]
[1743738343570,4.6555,1790.2,1790.1,1.481]
[1743738343773,4.6555,1790.2,1790.1,2.59868]
[1743738345575,5.77311,1790.2,1790.1,2.59868]
[1743738346373,5.77311,1790.2,1790.1,1.481]
[1743738346872,5.77311,1790.2,1790.1,2.59868]
[1743738348072,4.6555,1790.2,1790.1,2.59868]
[1743738349176,5.77311,1790.2,1790.1,2.59868]
[1743738349769,5.77311,1790.2,1790.1,1.481]
[1743738349975,1.11768,1790.1,1790.0,1.12610504]
[1743738350277,2.65468,1790.1,1790.0,0.00838504]
[1743738350572,1.11796,1789.7,1789.6,1.11796]
[1743738350774,1.118,1789.6,1789.4,5.69137]
[1743738350970,2.655,1789.6,1789.5,1.11805]
[1743738351176,1.11805,1789.5,1789.4,5.69136]
[1743738351474,1.537,1789.5,1789.4,5.69136]
[1743738351974,2.65505,1789.5,1789.4,5.69136]
[1743738352169,1.537,1789.5,1789.4,5.69136]
[1743738352468,1.537,1789.5,1789.4,1.87936]
[1743738352673,3.2078,1790.0,1789.4,6.4691]
[1743738352875,1.4167,1790.2,1790.1,1.11768]
[1743738353574,1.4167,1790.2,1790.0,1.4667]
[1743738353770,0.00838504,1790.3,1790.2,1.11761]
[1743738354271,1.11763,1790.2,1790.0,1.4667]
[1743738354473,1.11776,1790.0,1789.8,3.2078]
[1743738354673,1.4167,1789.9,1789.4,3.9134]
[1743738354978,2.184,1789.9,1789.5,2.79513]
[1743738355277,3.30183,1789.9,1789.7,1.11788]